Cogmind - Beta 13 @@@ ROGUE MODE // 2024.07.04 @ 15:25:32 Player: CanadianCogs Result: Destroyed by G-47 Trooper with Particle Gun Performance ------------- Evolutions (0) 0 Regions Visited (2) 400 Robots Destroyed (6) 30 Value Destroyed (68) 68 Prototype IDs (0) 0 Alien Tech Used (0) 0 Bonus (0) 0 TOTAL SCORE: 498 Bonus ------- None Cogmind --------- Core Integrity 0/250 Matter 256/300 Energy 98/100 System Corruption 1% Temperature Cool (9) Movement Rolling (90) Location -10/Mines Parts ------- > --- POWER (1) -------- (None) > --- PROPULSION (2) --- Armored Wheel Armored Wheel > --- UTILITY (2) ------ Large Storage Unit > --- WEAPON (2) ------- (None) > --- INVENTORY (15) --- Armored Wheel Armored Wheel Improved Hover Unit Improved Hover Unit Improved Hover Unit Improved Hover Unit Heat Sink Seismic Detector Seismic Detector Power Shielding Peak State ------------ > --- POWER ------------ Ion Engine > --- PROPULSION ------- Compact Wheel Compact Wheel > --- UTILITY ---------- Small Storage Unit Seismic Detector > --- WEAPON ----------- EM Pulse Gun EM Pulse Gun > --- INVENTORY -------- (None) [Rating: 7] Favorites ----------- Power Ion Engine Engine Ion Engine Propulsion Compact Wheel Wheel Compact Wheel Utility Large Storage Unit Device Seismic Detector Storage Large Storage Unit Weapon EM Pulse Gun Energy Gun EM Pulse Gun Build | -11 -10 -10 ------- Run | Yrd Mat Min Slots Evolved . | . . . Power . | . . . Propulsion . | . . . Utility . | . . . Weapon . | . . . Parts Attached 12 | 7 5 . Power 1 | 1 . . Engine 1 | 1 . . Core . | . . . Reactor . | . . . Propulsion 5 | 2 3 . Treads . | . . . Leg . | . . . Wheel 5 | 2 3 . Hover . | . . . Flight . | . . . Utility 4 | 2 2 . Device 1 | 1 . . Storage 3 | 1 2 . Processor . | . . . Hackware . | . . . Protection . | . . . Artifact . | . . . Weapon 2 | 2 . . Energy Gun 2 | 2 . . Energy Cannon . | . . . Ballistic Gun . | . . . Ballistic Cannon . | . . . Launcher . | . . . Special Weapon . | . . . Impact Weapon . | . . . Slashing Weapon . | . . . Piercing Weapon . | . . . Special Melee Weapon . | . . . Unidentified Prototypes . | . . . Parts Lost 5 | . 5 . Power 1 | . 1 . Propulsion 2 | . 2 . Utility . | . . . Weapon 2 | . 2 . Highest Loss Streak 3 | . 3 . To Critical Strikes . | . . . Average Slot Usage (%) 73 | . 73 . Engine 6 | . 6 . Wheel 23 | . 23 . Device 10 | . 10 . Storage 13 | . 13 . Energy Gun 19 | . 19 . Naked Turns 12 | . 12 . Heaviest Build 30 | 15 30 20 Greatest Support 32 | 32 32 24 Greatest Overweight (x) 6 | . 6 . Average Overweight (x) . | . . . Largest Inventory Capacity 15 | 8 15 15 Average Capacity 13 | 7 14 15 Most Carried 10 | 5 10 10 Average Carried 3 | . 3 10 Final Capacity 15 | 8 15 15 Final Carried 10 | . 10 10 Class Distribution -------------------- 100% | Mutant Dominant Class ---------------- Mutant | -10/Materials Mutant | -10/Mines Resources | -11 -10 -10 ----------- Run | Yrd Mat Min Matter Collected 270 | 270 . . Remotely . | . . . Salvage Created 217 | 175 42 . Parts 17 | 13 4 . Haulers Intercepted . | . . . Recyclers Shooed 1 | 1 . . Parts Field Recycled . | . . . Retrieved Matter . | . . . Parts Self-Destructed . | . . . Prevented . | . . . Kills | -11 -10 -10 ------- Run | Yrd Mat Min Combat Hostiles Destroyed 1 | . 1 . Guns 1 | . 1 . Classes Destroyed 3 | 2 1 . Tunneler 4 | 4 . . Recycler 1 | 1 . . Grunt 1 | . 1 . Best Kill Streak 3 | 3 1 . Combat Bots Only 1 | . 1 . Max Kills in Single Turn 1 | 1 1 . Gunslinging . | . . . Exploded . | . . . Melee . | . . . Uniques/NPCs Destroyed . | . . . Combat | -11 -10 -10 -------- Run | Yrd Mat Min Hostile Shots Fired 64 | . 60 4 Missed 18 | . 16 2 Damage Taken 621 | 16 572 33 Core 260 | . 227 33 Absorbed by Shields . | . . . Core Remaining (%) 100 | 100 . . Volleys Fired 26 | 15 11 . Largest 2 | 2 2 . Hottest 80 | 80 80 . Shots Fired 52 | 30 22 . Gun 52 | 30 22 . Cannon . | . . . Launcher . | . . . Special . | . . . Kinetic . | . . . Thermal . | . . . Explosive . | . . . Electromagnetic 52 | 30 22 . Robot Hit Streak 4 | 4 3 . Robot Miss Streak 6 | 6 2 . Penetration Max . | . . . Secondary Targets . | . . . Shots Hit Robots 24 | 13 11 . Core Hits 10 | 6 4 . Critical Kills . | . . . Critical Parts Destroyed . | . . . Critical Strikes . | . . . Melee Attacks . | . . . Impact . | . . . Slashing . | . . . Piercing . | . . . Sneak Attacks . | . . . Combat Hostiles . | . . . Follow-up Attacks . | . . . Damage Inflicted 429 | 209 220 . Guns 329 | 165 164 . Cannons . | . . . Explosions 78 | 44 34 . Melee . | . . . Ramming 22 | . 22 . Kinetic . | . . . Thermal 78 | 44 34 . Explosive . | . . . Electromagnetic 329 | 165 164 . Impact . | . . . Slashing . | . . . Piercing . | . . . Highest Corruption 1 | . 1 1 Average Corruption 1 | . 1 1 Corruption Purged . | . . . Corruption Blocked . | . . . Effects 3 | . 3 . Message Errors 1 | . 1 . Matter Fused 1 | . 1 . Alerts 1 | . 1 . Overload Shots . | . . . Overflow Damage . | . . . Projectiles . | . . . Explosions . | . . . Melee . | . . . Knockbacks 1 | . 1 . Impact 1 | . 1 . Kinetic . | . . . Secondary . | . . . Self-Inflicted Damage 26 | 16 10 . Shots 1 | 1 . . Rammed 4 | . 4 . Targets Rammed 4 | . 4 . Kicked . | . . . Crushed . | . . . Highest Temperature 138 | 138 66 . Average Temperature 42 | 53 26 . Received Heat Transfer 177 | . 159 18 Siege Activations . | . . . Robots Corrupted . | . . . Combat Hostiles . | . . . Parts Fried 1 | 1 . . Impact Corruptions . | . . . Robots Melted . | . . . Combat Hostiles . | . . . Parts Melted . | . . . Heat Transferred 100 | 50 50 . Parts Sabotaged . | . . . Parts Stolen . | . . . Parts Stripped . | . . . Power Chain Reactions 3 | 2 1 . Alert | -11 -10 -10 ------- Run | Yrd Mat Min Peak Influence 106 | 25 106 24 Initial 24 | . 16 24 Average 67 | 13 75 24 Maximum Alert Level . | . . . Low Security (%) 100 | 100 100 100 Level 1 . | . . . Level 2 . | . . . Level 3 . | . . . Level 4 . | . . . Level 5 . | . . . High Security . | . . . Max Security . | . . . Squads Dispatched 4 | . 4 . Investigation 3 | . 3 . Extermination . | . . . Reinforcement 1 | . 1 . Assault . | . . . Garrison . | . . . Intercept . | . . . Searches Triggered . | . . . Construction Impeded . | . . . Haulers Reinforced . | . . . Active Scanning Responses . | . . . Cargo Convoy Interrupts . | . . . Stealth | -11 -10 -10 --------- Run | Yrd Mat Min Distress Signals . | . . . Communications Jammed . | . . . Distress Signals . | . . . Times Spotted 21 | . 19 2 Peak Tracking Total 5 | . 5 2 Tactical Retreats 6 | . 6 . Traps | -11 -10 -10 ------- Run | Yrd Mat Min Traps Triggered . | . . . Indirectly . | . . . Trap Hack Attempts . | . . . Triggered . | . . . Disarmed . | . . . Reprogrammed 6 | . 6 . Reused 2 | . 2 . Traps Extracted . | . . . Installed . | . . . Triggered 2 | . 2 . Machines | -11 -10 -10 ---------- Run | Yrd Mat Min Machines Disabled . | . . . Max in Single Turn . | . . . Machines Repaired . | . . . Machines Dismantled . | . . . Machines Sabotaged . | . . . Overloaded Fab Kills . | . . . Hacking | -11 -10 -10 --------- Run | Yrd Mat Min Machines Accessed 6 | . 6 . Terminals 3 | . 3 . Fabricators . | . . . Repair Stations 1 | . 1 . Recycling Units 2 | . 2 . Scanalyzers . | . . . Garrison Access . | . . . Total Hacks 16 | . 16 . Successful 8 | . 8 . Failed 7 | . 7 . Catastrophic 2 | . 2 . Database Lockouts 1 | . 1 . Manual 11 | . 11 . Terminals 12 | . 12 . Fabricators . | . . . Repair Stations 2 | . 2 . Recycling Units 2 | . 2 . Scanalyzers . | . . . Garrison Access . | . . . Terminal Hacks 3 | . 3 . Robot Analysis 1 | . 1 . Reprogram Traps 1 | . 1 . Zone Layout 1 | . 1 . Fabricator Hacks . | . . . Repair Station Hacks . | . . . Recycling Unit Hacks . | . . . Scanalyzer . | . . . Garrison Access Hacks . | . . . Unauthorized Hacks 5 | . 5 . Terminals 3 | . 3 . Botnet 3 | . 3 . Fabricators . | . . . Repair Stations . | . . . Recycling Units 2 | . 2 . Tunnel 2 | . 2 . Scanalyzers . | . . . Garrison Access . | . . . Data Cores Recovered . | . . . Used . | . . . Hacking Detections 4 | . 4 . Full Trace Events 2 | . 2 . Feedback Events . | . . . Feedback Blocked . | . . . Robot Schematics Acquired . | . . . Robots Built . | . . . Authchips . | . . . Time . | . . . Total Robot Build Rating . | . . . Part Schematics Acquired . | . . . Parts Built . | . . . Authchips . | . . . Time . | . . . Total Part Build Rating . | . . . Parts Repaired . | . . . Time . | . . . Parts Recycled . | . . . Recycled Matter . | . . . Retrieved Matter . | . . . Retrieved Components . | . . . Parts Scanalyzed . | . . . Part Schematics Acquired . | . . . Parts Damaged . | . . . Bothacking | -11 -10 -10 ------------ Run | Yrd Mat Min Used RIF Installer . | . . . Robots Hacked . | . . . Non-combat . | . . . Combat . | . . . Robot Hacks Applied . | . . . Relay Couplers Released . | . . . Fabnet Peak Effective % . | . . . Robots Rewired . | . . . Allies Hacked . | . . . Hacks Repelled . | . . . Allies | -11 -10 -10 -------- Run | Yrd Mat Min Total Allies . | . . . Largest Group . | . . . Highest-Rated Group . | . . . Highest-Rated Ally . | . . . Total Orders . | . . . Ally Attacks . | . . . Total Damage . | . . . Kills . | . . . Allies Corrupted . | . . . Allies Melted . | . . . Intel | -11 -10 -10 ------- Run | Yrd Mat Min Robot Analysis Total 1 | . 1 . Derelict Logs Recovered . | . . . Drone Launches . | . . . Drone Recoveries . | . . . Exploration | -11 -10 -10 ------------- Run | Yrd Mat Min Turns Passed 1117 | 131 980 6 Spaces Moved 590 | 84 499 7 Core 47 | 23 24 . Treads . | . . . Legs . | . . . Wheels 543 | 61 475 7 Hover . | . . . Flight . | . . . Fastest Speed 50 | 50 50 90 Average Speed 96 | 86 98 90 Slowest Speed 350 | 100 350 90 Overloaded Moves . | . . . Propulsion Burnouts . | . . . Robots Hopped . | . . . Cave-ins Triggered . | . . . Exploration Rate (%) 25 | 4 64 8 Regions Visited 2 Branch Regions 1 Pre-discovered Areas 2 | . 2 . Known Exits Taken . | . . . Unknown Exits Taken 2 | 1 1 . Scrap Searched . | . . . Spaces Dug . | . . . Terrain Destroyed 5 | 2 3 . Melee . | . . . Projectile . | . . . AOE 5 | 2 3 . Terrain Rammed . | . . . Walls Destroyed . | . . . Machines Disabled . | . . . Actions | -11 -10 -10 --------- Run | Yrd Mat Min Total 1084 | 111 966 7 Wait 432 | . 432 . Move 588 | 83 498 7 Hop . | . . . Pick Up 18 | 6 12 . Fast Attach 2 | 1 1 . Attach 9 | 6 3 . Detach 2 | . 2 . Swap 1 | . 1 . Drop 2 | . 2 . Fire 26 | 15 11 . Melee . | . . . Ram 4 | . 4 . Kick . | . . . Crush . | . . . Escape Stasis . | . . . Rewire . | . . . Trap . | . . . Miscellaneous . | . . . Route ------- -11/Scrapyard -10/Materials (discovered 5 exits: [*Mat x3] / [*Min] / [*Sub]) -10/Mines History --------- Turn | Location | Event 11 | -11/Scrapyard | Discovered new exit (range 15) 132 | -11/Scrapyard | Entered Materials 315 | -10/Materials | Build established: Mutant 566 | -10/Materials | Discovered new exit (range 10) 578 | -10/Materials | Central database locked down 630 | -10/Materials | Discovered new exit (range 3) 860 | -10/Materials | Discovered new exit (range 5) 862 | -10/Materials | Lost 3 parts (1n2w) 1080 | -10/Materials | Core integrity fell below 50% 1082 | -10/Materials | Discovered new exit (range 11) 1098 | -10/Materials | Discovered new exit (range 15) 1106 | -10/Materials | Core integrity fell below 20% 1112 | -10/Materials | Entered Mines 1118 | -10/Mines | Destroyed by G-47 Trooper with Particle Gun Last Messages --------------- M006. 00865_ O-16 Technician locks terminal. 00888_ Dropped Com. Wheel. 00890_ Acquired Arm. Wheel. 00910_ 68HC/DWR10 <5O,5QXM9GGD/FXDKB,33AHTBL 00910_ Acquired Imp. Hover Unit. 00970_ System corrupted: Matter fused (-8). 00993_ Connecting with Terminal... >>Trojan(Botnet) Trojan loaded successfully. Testing... Terminal linked with 2 systems. Awaiting botnet instructions. 01066_ Slammed into R-06 Scavenger. 01072_ Slammed into K-01 Serf. 01082_ EXIT=FOUND LOCATION=UNKNOWN GOAL=ESCAPE 01113_ G-34 Mercenary destroyed. 01116_ K-01 Serf collects debris. Map ----- +----------------------------------------------------+ | | | | | | | | | | | | | | | | | | | | | | | | | ??????????????????????????????????????????? | | ??????????????????????????????????????????? | | ??????????????????????????????????????????? | | ??????????????????????????????????????????? | | ???????????????????????????#############??? | | ???????????????????????????# ??? | | ???????????????????????????# """ """ ??? | | ???????????????????????????# """ """ #?? | | ???????????????????######### """ """ #?? | | ????????????????#### ## #?? | | ????????????????? """## """ #?? | | ???????????????????# """## """ #?? | | ???????????????????# """## """ #?? | | ???????????????????# kk@ %g #?? | | ???????????????????######### """ """ #?? | | ???????????????????????????# """ """ #?? | | ???????????????????????????# """ """ #?? | | ???????????????????????????# ???? | | ???????????????????????????############???? | | ??????????????????????????????????????????? | | ??????????????????????????????????????????? | | ??????????????????????????????????????????? | | ??????????????????????????????????????????? | | ??????????????????????????????????????????? | | ??????????????????????????????????????????? | | ??????????????????????????????????????????? | | ??????????????????????????????????????????? | | ??????????????????????????????????????????? | | ??????????????????????????????????????????? | | ??????????????????????????????????????????? | | ??????????????????????????????????????????? | | ??????????????????????????????????????????? | | ??????????????????????????????????????????? | | ??????????????????????????????????????????? | | ??????????????????????????????????????????? | | ??????????????????????????????????????????? | | ??????????????????????????????????????????? | | ??????????????????????????????????????????? | +----------------------------------------------------+ Best States ------------- Heat Dissipation 25 Energy Generation 10 Energy Capacity 250 Matter Stores 300 Matter Capacity 300 Sight Range 16 Terrain Scan Density 10 Evasion (%) 50 Item Schematics ----------------- None Robot Schematics ------------------ None Fabricated ------------ Nothing Alien Tech Used ----------------- None Achievements -------------- None Challenges ------------ None Game ------ Seed RecoilBackupArachnoskeleton Manual? 0 Play Time 00:10:57 Cumulative 50.1 hours Start 2024.07.04 @ 15:09:02 End 2024.07.04 @ 15:25:32 Sessions 1 Manual Loads 0 Difficulty Rogue Special Mode None Game No. 84 Rogue 84 Adventurer 0 Explorer 0 Win Type - Total 0 Types 0/0/0/0/0/0/0/0/0 Lore% 25 Gallery% 35 Achievement% 30 Wizard Run 0 Options --------- Layout 0 ASCII 0 Keyboard 0 Movement Mouse Keybinds 0 Fullscreen 2 Font 18/SmallcapsGlow Map View 38x25 Zoom Use 96% Tactical HUD 1 Map Filters NONE Filters NONE Steam 1 RUN: a301cab2-2d6f-4bb3-a798-30b0bded11b2